bitfinex/quotes_ETHUSD_20251009
["timestamp","ask_amount","ask_price","bid_price","bid_amount"]
[1760042941845,2.30473161,4338.9,4338.2,0.4311]
[1760042942032,2.30479332,4338.8,4338.1,0.005]
[1760042942231,2.40949332,4338.8,4338.1,0.005]
[1760042942553,4.558,4339.0,4338.1,0.005]
[1760042942754,2.30473676,4338.9,4338.1,1.925]
[1760042942955,8.85180197,4338.8,4338.1,0.005]
[1760042943461,8.95650197,4338.8,4338.1,0.005]
[1760042943623,2.3048599,4338.7,4338.1,0.005]
[1760042943821,6.547,4338.8,4338.1,1.925]
[1760042944024,2.30473657,4338.9,4338.1,1.925]
[1760042944224,8.0397896,4338.8,4338.1,1.925]
[1760042944459,8.0397896,4338.8,4338.1,0.005]
[1760042944640,8.1444896,4338.8,4338.1,0.005]
[1760042945462,2.3046414,4339.1,4338.1,0.005]
[1760042945463,2.40925634,4339.3,4338.3,2.30503953]
[1760042945631,4.022,4339.2,4338.6,0.4311]
[1760042945959,6.546,4339.1,4338.2,2.30505411]
[1760042946139,6.546,4339.0,4338.3,0.4311]
[1760042946331,6.546,4339.0,4338.3,2.73614059]
[1760042947062,8.85068049,4339.0,4338.3,0.4311]
[1760042947266,6.546,4339.0,4338.3,2.73614036]
[1760042948578,6.546,4339.0,4338.3,2.30504036]
[1760042948889,0.1047,4339.6,4338.6,0.4311]
[1760042949061,6.546,4339.5,4338.6,0.4311]
[1760042949262,0.1047,4339.4,4338.5,0.001]
[1760042949576,0.1152,4338.6,4338.5,2.3059441]
[1760042949956,0.1152,4338.6,4338.5,0.4321]
[1760042950676,0.1152,4338.6,4338.5,0.001]
[1760042950979,2.52479097,4338.6,4338.5,0.001]
[1760042951177,3.0077491,4338.6,4338.5,0.001]
[1760042951379,9.5527491,4338.6,4338.5,0.001]
[1760042951746,9.5407491,4338.6,4338.5,0.001]
[1760042952382,9.05779097,4338.6,4338.5,0.001]
[1760042952683,2.51279097,4338.6,4338.5,0.001]
[1760042953058,8.50179097,4338.6,4338.5,0.001]
[1760042953445,9.05879097,4338.6,4338.5,0.001]
[1760042956191,0.2079,4338.6,4338.5,0.001]
[1760042956350,2.51279097,4338.6,4338.5,0.001]
[1760042958962,0.2079,4338.6,4338.5,0.001]
[1760042959163,9.05779097,4338.6,4338.5,0.001]
[1760042959584,0.2079,4338.6,4338.5,0.001]
[1760042959783,4.9229,4338.6,4338.5,0.001]
[1760042960291,6.6472,4338.6,4338.5,0.001]
[1760042960468,0.1032,4338.6,4338.5,0.001]
[1760042960653,9.05679097,4338.6,4338.5,0.001]
[1760042961056,0.2079,4338.6,4338.5,0.001]
[1760042961279,3.4739,4338.6,4338.5,0.001]
[1760042961468,3.00665779,4338.6,4338.5,0.001]
[1760042961669,9.54965779,4338.6,4338.5,0.001]
[1760042961887,3.00665779,4338.6,4338.5,0.001]
[1760042962082,0.1032,4338.6,4338.5,0.001]
[1760042962267,0.59733944,4338.6,4338.5,0.001]
[1760042962472,0.1032,4338.6,4338.5,0.001]
[1760042963507,0.59865038,4338.6,4338.5,0.001]
[1760042966208,0.60065038,4338.6,4338.5,0.001]
[1760042967211,0.60065038,4338.6,4338.2,2.29608555]
[1760042967401,0.1152,4338.3,4338.2,2.29608555]
[1760042968188,0.1152,4338.3,4338.2,3.20211282]
[1760042969584,0.1172,4338.6,4338.2,3.20211282]
[1760042969784,0.1172,4338.6,4338.5,2.3049441]
[1760042970524,0.1172,4338.6,4338.5,2.7502441]
[1760042975728,0.002,4338.6,4338.5,4.6702441]
[1760042975903,0.002,4338.6,4338.5,6.07906618]
[1760042978413,0.002,4338.6,4338.5,1.92]
[1760042982255,0.002,4338.6,4338.5,4.2249441]
[1760042983113,0.002,4338.6,4338.5,4.2259441]
[1760042983823,0.002,4338.6,4338.5,4.6712441]
[1760042984314,0.002,4338.6,4338.5,4.2259441]
[1760042985948,0.002,4338.6,4338.5,1.921]
[1760042988012,0.1067,4338.6,4338.5,0.001]
[1760042988431,0.5898507,4338.6,4338.5,0.001]
[1760042988635,0.002,4338.6,4338.5,0.001]
[1760042990181,0.1067,4338.6,4338.5,0.001]
[1760042991526,0.002,4338.6,4338.5,0.001]
[1760042993027,0.1067,4338.6,4338.5,0.001]
[1760042995559,0.002,4338.6,4338.5,0.001]
[1760043000572,2.41159097,4338.6,4338.5,0.001]
[1760043000741,2.65275007,4338.6,4338.5,0.001]
[1760043001155,0.3478591,4338.6,4338.5,0.001]
[1760043001671,2.65275007,4338.6,4338.5,0.001]
[1760043002263,0.3478591,4338.6,4338.5,0.001]
[1760043003484,0.002,4338.6,4338.5,0.001]
[1760043004088,0.1067,4338.6,4338.5,0.001]
[1760043006182,0.002,4338.6,4338.5,0.001]
[1760043006485,0.1067,4338.6,4338.5,0.001]
[1760043006892,2.41159097,4338.6,4338.5,0.001]
[1760043007093,3.53652433,4338.6,4338.5,0.001]
[1760043007678,1.23163336,4338.6,4338.5,0.001]
[1760043007895,0.1067,4338.6,4338.5,0.001]
[1760043008482,0.002,4338.6,4338.5,0.001]
[1760043009976,0.1067,4338.6,4338.5,0.001]
[1760043010314,2.41159097,4338.6,4338.5,0.001]
[1760043010512,0.1067,4338.6,4338.5,0.001]
[1760043011536,2.41159097,4338.6,4338.5,0.001]
[1760043012205,0.1067,4338.6,4338.5,0.001]
[1760043016134,0.1067,4338.6,4338.5,0.0498]
[1760043020248,0.002,4338.6,4338.5,2.8151441]
[1760043020404,0.1172,4338.6,4338.5,5.4876273]
[1760043020600,0.1172,4338.6,4338.5,5.46457786]
[1760043021698,0.002,4338.6,4338.5,5.46457786]
[1760043023168,0.1152,4338.9,4338.6,1.92]
[1760043023350,0.002,4339.1,4339.0,2.30467849]
[1760043023551,0.002,4339.1,4339.0,2.32772527]
[1760043023859,0.002,4339.1,4339.0,11.24112527]
[1760043024066,0.002,4339.1,4339.0,11.21807849]
[1760043025662,0.002,4339.1,4339.0,8.453]
[1760043025868,0.002,4339.1,4339.0,1.92]
[1760043026842,0.002,4339.1,4339.0,4.22467849]
[1760043027656,0.002,4339.1,4339.0,5.16336864]
[1760043028652,0.002,4339.1,4339.0,5.61406864]
[1760043031069,0.002,4339.1,4339.0,12.14606864]
[1760043032445,0.1152,4339.4,4339.3,2.30451916]
[1760043032788,0.002,4339.5,4339.4,4.22446605]
[1760043032988,0.002,4339.5,4339.4,4.79036605]
[1760043033959,0.002,4340.0,4339.9,2.30420055]
[1760043034150,0.002,4340.0,4339.9,11.40804789]
[1760043034347,0.002,4340.0,4339.9,11.85874789]
[1760043034886,0.002,4340.0,4339.9,12.32689588]
[1760043038484,0.002,4340.0,4339.9,11.85874789]
[1760043043723,0.002,4340.0,4339.9,9.55454734]
[1760043043882,0.002,4340.0,4339.9,11.85874789]
[1760043051714,0.002,4340.0,4339.9,10.75520055]
[1760043052076,0.002,4340.0,4339.9,11.21040055]
[1760043052277,0.002,4340.0,4339.9,10.75520055]
[1760043052832,0.002,4340.0,4339.9,11.21040055]
[1760043056233,0.1164,4340.5,4340.4,2.30393512]
[1760043056564,0.1164,4340.5,4340.4,10.75293512]
[1760043057154,0.1164,4340.5,4340.4,11.20443512]
[1760043063206,0.1164,4340.5,4340.4,10.75293512]
[1760043063354,0.1164,4340.5,4340.4,1.92]
[1760043063690,0.1164,4340.5,4339.6,2.396]
[1760043063691,0.237,4340.5,4339.6,2.396]
[1760043063890,0.1152,4339.8,4339.7,2.221]
[1760043064466,0.1152,4339.8,4339.7,4.52530674]
[1760043064798,0.1152,4339.8,4339.7,2.221]
[1760043064971,0.2358,4339.8,4339.7,2.221]
[1760043065866,0.2358,4339.8,4339.6,0.001]
[1760043065867,2.30430674,4339.7,4339.6,0.001]
[1760043066062,2.67891741,4339.7,4339.6,0.001]
[1760043066701,3.31251741,4339.7,4339.6,0.001]
[1760043068185,9.84051741,4339.7,4339.6,0.001]
[1760043069407,7.53621067,4339.7,4339.6,0.001]
[1760043069700,9.84051741,4339.7,4339.6,0.001]
[1760043070600,12.23651741,4339.7,4339.6,0.001]
[1760043074725,12.73052833,4339.7,4339.6,0.001]
[1760043075228,12.23651741,4339.7,4339.6,0.001]
[1760043075910,3.31251741,4339.7,4339.6,0.001]
[1760043076116,12.23851741,4339.7,4339.6,0.001]
[1760043076494,12.33080547,4339.7,4339.6,0.001]
[1760043078624,3.40480547,4339.7,4339.6,0.001]
[1760043078934,12.33080547,4339.7,4339.6,0.001]
[1760043080452,2.77120547,4339.7,4339.6,0.001]
[1760043080652,2.5171948,4339.7,4339.6,0.001]
[1760043080851,9.1307948,4339.7,4339.6,0.001]
[1760043081853,9.0819948,4339.7,4339.6,0.001]
[1760043082260,3.1019948,4339.7,4339.6,0.001]
[1760043082559,12.0279948,4339.7,4339.6,0.001]
[1760043082756,13.47293772,4339.7,4339.6,0.001]
[1760043082986,4.54693772,4339.7,4339.6,0.001]
[1760043083164,12.0279948,4339.7,4339.6,0.001]
[1760043083364,3.1019948,4339.7,4339.6,0.001]
[1760043083552,12.0279948,4339.7,4339.6,0.001]
[1760043084768,9.6339948,4339.7,4339.6,0.001]
[1760043084956,12.0299948,4339.7,4339.6,0.001]
[1760043085151,13.47513772,4339.7,4339.6,0.001]
[1760043085653,4.54913772,4339.7,4339.6,0.001]
[1760043085855,12.0299948,4339.7,4339.6,0.001]
[1760043088351,3.1039948,4339.7,4339.6,0.001]
[1760043088546,12.0299948,4339.7,4339.6,0.001]
[1760043090986,3.1039948,4339.7,4339.6,0.001]
[1760043091157,12.0299948,4339.7,4339.6,0.001]
[1760043091358,13.47513772,4339.7,4339.6,0.001]
[1760043093196,13.97104706,4339.7,4339.6,0.001]
[1760043093968,5.04504706,4339.7,4339.6,0.001]
[1760043094169,12.52590414,4339.7,4339.6,0.001]
[1760043094591,3.59990414,4339.7,4339.6,0.001]
[1760043095089,12.52590414,4339.7,4339.6,0.001]
[1760043095886,10.12990414,4339.7,4339.6,0.001]
[1760043097206,3.59990414,4339.7,4339.6,0.001]
[1760043097385,12.43361608,4339.7,4339.6,0.001]
[1760043097723,2.87401608,4339.7,4339.6,0.001]
[1760043097885,2.37810674,4339.7,4339.6,0.001]
[1760043098084,8.90810674,4339.7,4339.6,0.001]
[1760043098396,2.87401608,4339.7,4339.6,0.001]
[1760043098601,8.90810674,4339.7,4339.6,0.001]
[1760043098910,9.40401608,4339.7,4339.6,0.001]
[1760043100139,11.45746468,4339.7,4339.6,0.001]
[1760043101944,3.50761608,4339.7,4339.6,0.001]
[1760043102248,12.43361608,4339.7,4339.6,0.001]
[1760043109344,13.05364442,4339.7,4339.6,0.001]
[1760043109550,12.43361608,4339.7,4339.6,0.001]
[1760043110350,13.05465783,4339.7,4339.6,0.001]
[1760043110550,14.68209901,4339.7,4339.6,0.001]
[1760043111959,5.13505726,4339.7,4339.6,0.001]
[1760043112159,12.43361608,4339.7,4339.6,0.001]
[1760043112664,13.05465783,4339.7,4339.6,0.001]
[1760043121311,0.56970934,4339.7,4339.6,0.001]
[1760043121495,2.87401608,4339.7,4339.6,0.001]
[1760043121810,6.6028,4339.7,4339.6,0.001]
[1760043122013,0.49790934,4339.7,4339.6,0.001]
[1760043122230,0.002,4339.7,4339.6,0.76091441]
[1760043122378,0.002,4339.7,4339.6,2.76565984]
[1760043122776,0.002,4339.7,4339.6,2.78870343]
[1760043122980,0.002,4339.7,4339.6,4.70870343]
[1760043123408,0.002,4339.7,4339.6,4.68565984]
[1760043123594,0.002,4339.7,4339.6,5.38467182]
[1760043125980,0.002,4339.7,4339.6,11.91267182]
[1760043127793,0.002,4339.7,4339.6,12.36472391]
[1760043131949,0.002,4339.7,4339.6,4.92437182]
[1760043132259,0.1172,4339.7,4339.6,11.45137182]
[1760043134135,0.1172,4339.7,4339.6,11.91167182]
[1760043135343,0.1172,4339.7,4339.6,11.45137182]
[1760043136625,0.1172,4339.7,4339.6,9.14701198]
[1760043137116,0.1172,4339.7,4339.6,11.45137182]
[1760043138455,0.1172,4339.7,4339.6,11.91167182]
[1760043140759,0.1172,4339.7,4339.6,11.45137182]
[1760043141070,0.1172,4339.7,4339.6,11.91167182]
[1760043145738,0.1172,4339.7,4339.6,8.448]
[1760043146161,0.1895,4339.7,4339.6,8.448]
[1760043146767,0.1895,4339.7,4339.6,1.921]
[1760043148310,0.1895,4339.7,4339.6,0.001]
[1760043149324,3.12740674,4339.7,4339.6,0.001]
[1760043149476,4.75952356,4339.7,4339.6,0.001]
[1760043150915,3.12740674,4339.7,4339.6,0.001]
[1760043151114,17.71997535,4339.7,4339.6,0.001]
[1760043151323,18.21553196,4339.7,4339.6,0.001]
[1760043151476,19.03680305,4339.7,4339.6,0.001]
[1760043151676,19.03680305,4339.7,4339.1,0.001]
[1760043151677,2.93817227,4339.2,4339.1,0.001]
[1760043151885,8.72394088,4339.2,4339.1,0.001]
[1760043152108,9.29179749,4339.2,4339.1,0.001]
[1760043152675,6.80425958,4338.6,4338.5,1e-08]
[1760043152876,16.22181619,4338.6,4338.5,1e-08]
[1760043153075,16.81803308,4338.6,4338.5,1e-08]
[1760043154178,18.73803308,4338.6,4338.5,1e-08]
[1760043156131,18.83035692,4338.6,4338.5,1e-08]
[1760043157531,19.51934102,4338.6,4338.5,1e-08]
[1760043157715,19.02378441,4338.6,4338.5,1e-08]
[1760043158927,10.10178441,4338.6,4338.5,1e-08]
[1760043159235,19.02678441,4338.6,4338.5,1e-08]
[1760043160534,10.10178441,4338.6,4338.5,1e-08]
[1760043160829,19.02678441,4338.6,4338.5,1e-08]
[1760043161527,16.62978441,4338.6,4338.5,1e-08]
[1760043161832,19.02678441,4338.6,4338.5,1e-08]
[1760043163201,10.10178441,4338.6,4338.5,1e-08]
[1760043163528,19.02678441,4338.6,4338.5,1e-08]
[1760043163729,9.46818441,4338.6,4338.5,1e-08]
[1760043163931,13.8384317,4338.6,4338.5,1e-08]
[1760043164233,4.9134317,4338.6,4338.5,1e-08]
[1760043164417,11.30219097,4338.6,4338.5,1e-08]
[1760043164819,0.0723,4338.6,4338.5,1e-08]
[1760043165022,6.6003,4338.6,4338.5,1e-08]
[1760043165224,7.2339,4338.6,4338.5,1e-08]
[1760043165533,8.90519097,4338.6,4338.5,1e-08]
[1760043165899,9.53879097,4338.6,4338.5,1e-08]
[1760043168108,9.54079097,4338.6,4338.5,1e-08]
[1760043169315,4.4370487,4338.6,4338.5,1e-08]
[1760043169518,9.54079097,4338.6,4338.5,1e-08]
[1760043178114,10.0355317,4338.6,4338.5,1e-08]
[1760043184694,10.0345317,4338.6,4338.5,1e-08]
[1760043184988,0.49674073,4338.6,4338.5,1e-08]
[1760043185191,0.002,4338.6,4338.5,2.30494411]
[1760043185395,0.002,4338.6,4338.5,2.98543852]
[1760043187090,0.002,4338.6,4338.5,0.23049442]
[1760043187289,0.002,4338.6,4338.5,1e-08]
[1760043190990,0.7079,4338.6,4338.5,1e-08]
[1760043191302,3.01279097,4338.6,4338.5,1e-08]
[1760043191900,3.50826226,4338.6,4338.5,1e-08]
[1760043193127,9.53879097,4338.6,4338.5,1e-08]
[1760043195390,10.96284945,4338.6,4338.5,1e-08]
[1760043197214,2.05965848,4338.6,4338.5,1e-08]
[1760043197514,9.53879097,4338.6,4338.5,1e-08]
[1760043198421,7.2339,4338.6,4338.5,1e-08]
[1760043198619,9.53879097,4338.6,4338.5,1e-08]
[1760043200509,7.2339,4338.6,4338.5,1e-08]
[1760043200909,9.53879097,4338.6,4338.5,1e-08]
[1760043202988,7.2339,4338.6,4338.5,1e-08]
[1760043203391,9.53879097,4338.6,4338.5,1e-08]
[1760043203897,7.2339,4338.6,4338.5,1e-08]
[1760043204304,9.53879097,4338.6,4338.5,1e-08]
[1760043207129,7.2339,4338.6,4338.5,1e-08]
[1760043207439,0.002,4338.6,4338.5,1e-08]
[1760043209013,0.002,4338.6,4338.5,2.30494411]
[1760043209234,0.002,4338.6,4338.5,1e-08]
[1760043212334,0.002,4338.6,4338.5,2.30494411]
[1760043212712,0.002,4338.6,4338.5,5.18456858]
[1760043213951,0.002,4338.6,4338.5,1.92000001]
[1760043214155,0.002,4338.6,4338.5,4.22494411]
[1760043214317,0.002,4338.6,4338.5,1.92000001]
[1760043215049,0.002,4338.6,4338.5,4.22494411]
[1760043216447,0.002,4338.6,4338.5,1.92000001]
[1760043217159,0.002,4338.6,4338.5,4.22494411]
[1760043219467,0.002,4338.6,4338.5,4.87794073]
[1760043224903,0.0743,4338.6,4338.5,1.92000001]
[1760043225720,0.0743,4338.6,4338.5,1e-08]
[1760043225721,2.37919097,4338.6,4338.5,1e-08]
[1760043226160,0.0743,4338.6,4338.5,1e-08]
[1760043227997,0.002,4338.6,4338.5,1e-08]
[1760043228494,0.002,4338.6,4338.5,2.30494411]
[1760043228703,0.002,4338.6,4338.5,5.13394163]
[1760043233365,0.002,4338.6,4338.5,11.20894163]
[1760043233570,0.002,4338.6,4338.5,10.74794411]
[1760043234283,0.002,4338.6,4338.5,11.19594411]
[1760043243183,0.002,4338.6,4338.5,10.74794411]
[1760043243404,0.002,4338.6,4338.5,11.18724411]
[1760043244382,0.002,4338.6,4338.5,10.74794411]
[1760043244801,0.002,4338.6,4338.5,12.77617277]
[1760043261982,0.002,4338.6,4338.5,12.33687277]
[1760043262756,0.002,4338.6,4338.5,12.77617277]
[1760043271514,0.002,4338.6,4338.5,12.33687277]
[1760043271718,0.002,4338.6,4338.5,10.74794411]
[1760043272707,0.002,4338.6,4338.5,11.20664411]
[1760043278227,0.002,4338.6,4338.5,10.74794411]
[1760043279628,0.002,4338.6,4338.5,11.20664411]
[1760043280437,0.002,4338.6,4338.5,12.23694258]
[1760043281087,2.37919097,4338.6,4338.5,1e-08]
[1760043281286,0.0743,4338.6,4338.5,1e-08]
[1760043281525,3.01279097,4338.6,4338.5,1e-08]
[1760043283045,3.50879351,4338.6,4338.5,1e-08]
[1760043283262,5.04372793,4338.6,4338.5,1e-08]
[1760043283567,5.04291193,4338.6,4338.5,1e-08]
[1760043284936,13.95891193,4338.6,4338.5,1e-08]
[1760043285141,11.06690939,4338.6,4338.5,1e-08]
[1760043285342,8.76201842,4338.6,4338.5,1e-08]
[1760043285555,0.707084,4338.6,4338.5,1e-08]
[1760043285759,0.001184,4338.6,4338.5,1e-08]
[1760043286410,0.001184,4338.6,4338.5,2.74024411]
[1760043288413,0.001184,4338.6,4338.5,4.66024411]
[1760043288824,0.001184,4338.6,4338.5,4.68329355]
[1760043289134,0.001184,4338.6,4338.5,5.83472482]
[1760043289338,0.001184,4338.6,4338.5,5.81167538]
[1760043293667,0.001184,4338.6,4338.5,12.33167538]
[1760043298372,0.001184,4338.6,4338.5,12.44687538]
[1760043300274,1.441184,4338.6,4337.8,0.001]
[1760043300442,4.8590755,4337.5,4337.4,0.001]
[1760043300636,9.10693437,4337.5,4337.4,0.001]
[1760043300836,9.35730872,4337.5,4337.4,0.001]
[1760043301062,10.28561023,4337.5,4337.4,0.001]
[1760043301237,10.37793834,4337.5,4337.4,0.001]
[1760043302073,5.10093834,4337.5,4337.4,0.001]
[1760043303294,4.60613683,4337.5,4337.4,0.001]
[1760043311044,2.93928813,4337.1,4336.9,0.001]
[1760043311245,9.46028813,4337.1,4336.9,0.001]
[1760043311446,9.89378813,4337.1,4336.9,0.001]
[1760043311858,9.98612966,4337.1,4336.9,0.001]
[1760043316230,12.38512966,4337.1,4336.9,0.001]
[1760043316408,13.91688082,4337.1,4336.9,0.001]
[1760043317574,4.99688082,4337.1,4336.9,0.001]
[1760043317903,11.51888082,4337.1,4336.9,0.001]
[1760043318107,4.99688082,4337.1,4336.9,0.001]
[1760043318307,9.98712966,4337.1,4336.9,0.001]
[1760043319496,7.68144153,4337.1,4336.9,0.001]
[1760043319813,9.98712966,4337.1,4336.9,0.001]
[1760043320934,1.15944153,4337.1,4336.9,0.001]
[1760043321149,7.68244153,4337.1,4336.9,0.001]
[1760043321297,6.9555,4337.1,4336.9,0.001]
[1760043322523,2.30556716,4337.4,4336.9,2.30677498]
[1760043322524,6.9565,4337.4,4336.9,2.30677498]
[1760043322905,0.4335,4337.3,4336.9,2.30677498]
[1760043323437,0.4355,4337.6,4336.9,0.001]
[1760043323642,0.4355,4337.6,4337.2,2.30563137]
[1760043323820,0.002,4337.6,4337.0,2.30671393]
[1760043323990,0.002,4337.6,4337.2,2.3055913]
[1760043324392,0.4335,4337.5,4337.2,2.3055913]
[1760043324593,0.4335,4337.4,4337.2,2.3055913]
[1760043324834,0.1152,4337.2,4337.1,0.23087139]
[1760043325130,0.1152,4337.2,4337.1,2.53655952]
[1760043325448,0.1152,4337.2,4337.1,3.00105952]
[1760043326118,0.1152,4337.2,4337.1,3.0241164]
[1760043326288,0.002,4337.6,4337.5,2.3054755]
[1760043326493,0.002,4337.6,4337.5,4.90163259]
[1760043326788,0.002,4337.6,4337.5,5.45827784]
[1760043327309,0.002,4337.6,4337.5,14.38627784]
[1760043328751,0.002,4337.6,4337.5,14.38527784]
[1760043328895,0.002,4337.6,4337.5,11.98827784]
[1760043329096,0.002,4337.6,4337.5,14.38527784]
[1760043329742,0.002,4337.6,4337.5,1.92]
[1760043330029,0.002,4337.6,4337.5,11.1982755]
[1760043332837,0.002,4337.6,4337.5,11.58369866]
[1760043334229,0.002,4338.5,4338.4,2.30499723]
[1760043334539,0.002,4338.5,4338.4,13.1750472]
[1760043334728,0.002,4338.5,4338.4,15.53955219]
[1760043335343,0.002,4338.5,4338.4,15.15412903]
[1760043339836,0.002,4338.5,4338.4,15.26932903]
[1760043341373,0.002,4338.5,4338.4,6.527]
[1760043341574,0.002,4338.5,4338.4,8.83199723]
[1760043343157,0.002,4338.5,4338.4,9.27479723]
[1760043345379,0.002,4338.5,4338.4,8.83199723]
[1760043346392,0.002,4338.5,4338.4,9.28359723]
[1760043350008,0.002,4338.5,4338.4,2.53559723]
[1760043350185,0.002,4338.5,4338.4,8.83999723]
[1760043352059,0.002,4338.5,4338.4,2.30499723]
[1760043352256,0.002,4338.5,4338.4,8.83999723]
[1760043358690,0.002,4338.5,4338.4,9.29769723]
[1760043359895,0.002,4338.5,4338.4,8.83999723]
[1760043364588,0.002,4338.5,4338.4,9.29769723]
[1760043365624,0.002,4338.5,4338.4,8.83999723]
[1760043369452,0.002,4338.5,4338.1,2.8547]
[1760043369453,0.002,4338.5,4338.1,0.001]
[1760043369754,0.002,4338.5,4338.2,2.77407753]
[1760043369755,0.4549,4338.4,4338.2,2.77407753]
[1760043369922,0.002,4338.5,4338.2,0.469]
[1760043370118,0.4549,4338.4,4338.2,0.469]
[1760043370315,0.4549,4338.3,4338.1,0.001]
[1760043370558,0.4549,4338.3,4338.2,6.528]
[1760043372046,0.4549,4338.3,4338.2,8.83310349]
[1760043375661,0.002,4338.5,4338.3,2.30505029]
[1760043375828,0.4549,4338.4,4338.2,6.528]
[1760043376029,0.4549,4338.4,4338.2,8.83310054]
[1760043376430,0.002,4338.5,4338.2,8.83310054]
[1760043376629,0.4569,4338.5,4338.2,8.83310054]
[1760043376826,0.4549,4338.4,4338.2,8.83310054]
[1760043377041,0.002,4338.5,4338.2,6.528]
[1760043377339,0.4549,4338.4,4338.2,6.528]
[1760043377526,0.4549,4338.3,4338.2,6.528]
[1760043378939,0.002,4338.5,4338.3,2.30504572]
[1760043379138,0.4569,4338.5,4338.3,2.30504572]
[1760043379465,0.4569,4338.5,4338.2,8.83310286]
[1760043379639,0.1152,4338.3,4338.2,6.528]
[1760043380170,0.1152,4338.3,4338.2,8.83310349]
[1760043380378,0.1152,4338.3,4338.2,6.528]
[1760043382143,0.5701,4338.3,4338.2,6.528]
[1760043383577,0.5701,4338.3,4338.1,0.001]
[1760043383901,0.5701,4338.3,4338.2,6.529]
[1760043386284,0.5701,4338.3,4338.2,8.83410349]
[1760043386585,0.5701,4338.3,4338.2,6.529]
[1760043390006,0.5701,4338.3,4338.1,0.001]
[1760043390207,2.74280349,4338.2,4338.1,0.001]
[1760043390364,1.83636076,4338.2,4338.1,0.001]
[1760043390564,0.4377,4338.2,4338.1,0.001]
[1760043390763,2.74280349,4338.2,4338.1,0.001]
[1760043391161,3.37640349,4338.2,4338.1,0.001]
[1760043391409,1.56683107,4338.2,4338.1,0.001]
[1760043391970,3.87193456,4338.2,4338.1,0.001]
[1760043392601,4.50134246,4338.2,4338.1,0.001]
[1760043393077,2.19623897,4338.2,4338.1,0.001]
[1760043393283,1.7007079,4338.2,4338.1,0.001]
[1760043393479,1.0713,4338.2,4338.1,0.001]
[1760043394574,1.56683107,4338.2,4338.1,0.001]
[1760043396903,3.87193456,4338.2,4338.1,0.001]
[1760043398809,5.79193456,4338.2,4338.1,0.001]
[1760043399008,16.18219319,4338.2,4338.1,0.001]
[1760043399207,20.56408286,4338.2,4338.1,0.001]
[1760043401574,21.25317785,4338.2,4338.1,0.001]
[1760043402196,22.07832495,4338.2,4338.1,0.001]
[1760043405532,22.17064901,4338.2,4338.1,0.001]
[1760043406400,21.34550191,4338.2,4338.1,0.001]
[1760043406626,21.34750191,4338.2,4338.1,0.001]
[1760043410747,8.48997715,4338.2,4338.1,0.001]
[1760043410930,15.01397715,4338.2,4338.1,0.001]
[1760043411128,7.87114829,4338.2,4338.1,0.001]
[1760043411317,14.80725862,4338.2,4338.1,0.001]
[1760043412006,5.88625862,4338.2,4338.1,0.001]
[1760043412202,14.80825862,4338.2,4338.1,0.001]
[1760043419231,15.63340572,4338.2,4338.1,0.001]
[1760043421252,14.80825862,4338.2,4338.1,0.001]
[1760043421468,17.06002907,4338.2,4338.1,0.001]
[1760043423939,17.88786532,4338.2,4338.1,0.001]
[1760043424153,17.06002907,4338.2,4338.1,0.001]
[1760043428246,8.74891603,4338.2,4338.1,0.001]
[1760043428570,11.77665862,4338.2,4338.1,0.001]
[1760043428759,12.41025862,4338.2,4338.1,0.001]
[1760043429580,11.77665862,4338.2,4338.1,0.001]
[1760043429785,12.41025862,4338.2,4338.1,0.001]
[1760043430143,13.23945192,4338.2,4338.1,0.001]
[1760043431283,14.10087246,4338.2,4338.1,0.001]
[1760043432073,15.34535942,4338.2,4338.1,0.001]
[1760043433084,2.3053692,4337.7,4337.6,0.001]
[1760043433291,9.32490027,4337.7,4337.6,0.001]
[1760043433477,9.78530027,4337.7,4337.6,0.001]
[1760043433676,11.14065334,4337.7,4337.6,0.001]
[1760043433995,11.23297548,4337.7,4337.6,0.001]
[1760043446493,8.82786502,4337.7,4337.6,0.001]
[1760043446681,11.13323422,4337.7,4337.6,0.001]
[1760043451149,4.14883422,4337.7,4337.6,0.001]
[1760043451335,11.10123422,4337.7,4337.6,0.001]
[1760043461031,10.47822241,4337.7,4337.6,0.001]
[1760043461378,12.87622241,4337.7,4337.6,0.001]
[1760043461573,14.93284333,4337.7,4337.6,0.001]
[1760043462271,12.53484333,4337.7,4337.6,0.001]
[1760043462472,14.93284333,4337.7,4337.6,0.001]
[1760043463050,6.01184333,4337.7,4337.6,0.001]
[1760043463375,14.93284333,4337.7,4337.6,0.001]
[1760043463541,18.8038032,4337.7,4337.6,0.001]
[1760043467144,16.4058032,4337.7,4337.6,0.001]
[1760043469043,9.8828032,4337.7,4337.6,0.001]
[1760043469245,16.4058032,4337.7,4337.6,0.001]
[1760043469864,8.17285321,4337.7,4337.6,0.001]
[1760043470059,8.08053107,4337.7,4337.6,0.001]
[1760043470574,10.38590027,4337.7,4337.6,0.001]
[1760043471382,8.08053107,4337.7,4337.6,0.001]
[1760043471577,3.86290027,4337.7,4337.6,0.001]
[1760043471779,10.38590027,4337.7,4337.6,0.001]
[1760043473774,1.12913107,4337.7,4337.6,0.001]
[1760043474072,8.71519365,4337.7,4337.6,0.001]
[1760043474277,8.09283107,4337.7,4337.6,0.001]
[1760043475454,10.39820027,4337.7,4337.6,0.001]
[1760043476080,11.02056285,4337.7,4337.6,0.001]
[1760043477169,10.39820027,4337.7,4337.6,0.001]
[1760043479185,12.01495133,4337.7,4337.6,0.001]